bitfinex/quotes_BTCUSD_20251231
["timestamp","ask_amount","ask_price","bid_price","bid_amount"]
[1767167230993,0.06779598,88650.0,88638.0,0.01132]
[1767167231191,0.01128057,88648.0,88638.0,0.01132]
[1767167231756,0.0001135,88650.0,88638.0,0.01132]
[1767167231950,0.011323,88656.0,88650.0,0.0004365]
[1767167232210,3e-06,88656.0,88650.0,0.0004365]
[1767167232540,3e-06,88656.0,88643.0,0.14015]
[1767167237468,0.01128255,88656.0,88643.0,0.14015]
[1767167237668,0.0112798,88654.0,88643.0,0.14015]
[1767167237956,0.01127967,88655.0,88643.0,0.14015]
[1767167238303,0.01128255,88656.0,88643.0,0.14015]
[1767167238909,3e-06,88656.0,88643.0,0.14015]
[1767167240122,0.01128255,88656.0,88643.0,0.14015]
[1767167240686,0.01127967,88655.0,88643.0,0.14015]
[1767167240822,0.01128255,88656.0,88643.0,0.14015]
[1767167242373,0.02439236,88656.0,88643.0,0.14015]
[1767167242526,3e-06,88656.0,88643.0,0.14015]
[1767167243354,0.01128255,88656.0,88643.0,0.14015]
[1767167243523,0.03567191,88656.0,88643.0,0.14015]
[1767167244334,0.01127967,88655.0,88643.0,0.14015]
[1767167244535,0.03567191,88656.0,88643.0,0.14015]
[1767167244735,0.01127967,88655.0,88643.0,0.14015]
[1767167245177,3e-06,88656.0,88643.0,0.14015]
[1767167245993,0.01128255,88656.0,88643.0,0.14015]
[1767167246132,3e-06,88656.0,88643.0,0.14015]
[1767167247465,3e-06,88656.0,88643.0,0.1514312]
[1767167248554,3e-06,88656.0,88645.0,0.15504095]
[1767167248773,3e-06,88656.0,88646.0,0.16636082]
[1767167249268,3e-06,88656.0,88648.0,0.14376]
[1767167252727,0.55255468,88697.0,88650.0,0.28652898]
[1767167252728,0.02438843,88663.0,88650.0,0.28652898]
[1767167252990,0.0001135,88664.0,88651.0,0.01128018]
[1767167253218,0.02450176,88664.0,88651.0,0.01128018]
[1767167253415,0.02450176,88664.0,88650.0,0.28652898]
[1767167253646,0.02450176,88664.0,88650.0,0.43028898]
[1767167253880,0.02450176,88664.0,88651.0,0.01128018]
[1767167254110,0.02450176,88664.0,88651.0,0.15504018]
[1767167254332,0.0001135,88664.0,88651.0,0.15504018]
[1767167254763,0.0001135,88664.0,88651.0,0.14376]
[1767167254892,0.0001135,88664.0,88652.0,0.01128006]
[1767167255246,0.0001135,88664.0,88653.0,0.01132]
[1767167257791,0.01139203,88664.0,88653.0,0.01132]
[1767167258283,0.01127866,88663.0,88653.0,0.01132]
[1767167258483,0.01139203,88664.0,88653.0,0.01132]
[1767167259166,0.000114,88653.0,88651.0,0.01128]
[1767167259329,0.27295965,88660.0,88651.0,0.01128]
[1767167259529,0.13953,88659.0,88643.0,0.0112812]
[1767167259729,0.13953,88659.0,88644.0,0.01128]
[1767167259926,0.13953,88659.0,88644.0,0.16632107]
[1767167260191,0.13953,88659.0,88645.0,0.01128095]
[1767167260603,0.13953,88659.0,88644.0,0.15504]
[1767167260889,0.13953,88659.0,88644.0,0.16632107]
[1767167261093,0.13953,88659.0,88644.0,0.15504]
[1767167261394,0.15080917,88659.0,88644.0,0.15504]
[1767167261588,0.01127929,88658.0,88644.0,0.15504]
[1767167261835,0.15080917,88659.0,88644.0,0.15504]
[1767167261947,0.13953,88659.0,88644.0,0.15504]
[1767167262147,0.13953,88659.0,88644.0,0.16632107]
[1767167262927,0.13953,88659.0,88645.0,0.01128095]
[1767167263369,0.13953,88659.0,88644.0,0.16632107]
[1767167263370,0.13953,88659.0,88644.0,0.15504]
[1767167263904,0.13953,88659.0,88644.0,0.16632107]
[1767167264450,0.13953,88659.0,88644.0,0.15504]
[1767167264854,0.13953,88659.0,88644.0,0.16632107]
[1767167265556,0.13953,88659.0,88644.0,0.15504]
[1767167266546,0.15080917,88659.0,88644.0,0.15504]
[1767167267801,0.13953,88659.0,88644.0,0.15504]
[1767167268113,0.15080917,88659.0,88644.0,0.15504]
[1767167268327,0.01127929,88658.0,88644.0,0.15504]
[1767167268572,0.01127942,88657.0,88644.0,0.15504]
[1767167268734,0.01127929,88658.0,88644.0,0.15504]
[1767167270409,0.13953,88659.0,88644.0,0.15504]
[1767167273152,0.15080917,88659.0,88644.0,0.15504]
[1767167273496,0.13953,88659.0,88644.0,0.15504]
[1767167276698,0.13953,88659.0,88645.0,0.01128]
[1767167280678,0.13953,88659.0,88645.0,0.02256095]
[1767167281299,0.13953,88659.0,88645.0,0.01128]
[1767167282350,0.13953,88659.0,88646.0,0.01128082]
[1767167282498,0.139095,88659.0,88647.0,0.01128069]
[1767167282719,0.139095,88659.0,88646.0,0.01128082]
[1767167283975,0.139095,88659.0,88647.0,0.01128069]
[1767167285000,0.139095,88659.0,88646.0,0.01128082]
[1767167285637,0.139095,88659.0,88645.0,0.07896515]
[1767167285857,0.139095,88659.0,88646.0,0.01128082]
[1767167286063,0.139095,88659.0,88645.0,0.02256095]
[1767167286667,0.139095,88659.0,88646.0,0.01128082]
[1767167286893,0.139095,88659.0,88647.0,0.01128069]
[1767167287069,0.139095,88659.0,88646.0,0.01128082]
[1767167288020,0.139095,88659.0,88645.0,0.02256095]
[1767167288985,0.139095,88659.0,88645.0,0.01128]
[1767167290458,0.139095,88659.0,88645.0,0.02256095]
[1767167290706,0.139095,88659.0,88646.0,0.01128]
[1767167293742,0.15037417,88659.0,88646.0,0.01128]
[1767167293955,0.139095,88659.0,88646.0,0.01128]
[1767167295224,0.139095,88659.0,88646.0,0.01123736]
[1767167296068,0.139095,88659.0,88646.0,0.01119513]
[1767167301810,0.139095,88659.0,88646.0,0.02247595]
[1767167302040,0.139095,88659.0,88646.0,0.02243341]
[1767167302685,0.139095,88659.0,88646.0,0.01115259]
[1767167304392,0.139095,88659.0,88646.0,0.02243341]
[1767167304567,0.139095,88659.0,88647.0,0.01128]
[1767167308074,0.15037417,88659.0,88647.0,0.01128]
[1767167308300,0.139095,88659.0,88647.0,0.01128]
[1767167308704,0.15037417,88659.0,88647.0,0.01128]
[1767167309023,0.139095,88659.0,88647.0,0.01128]
[1767167310818,0.15037417,88659.0,88647.0,0.01128]
[1767167311215,0.139095,88659.0,88647.0,0.01128]
[1767167314018,0.15454203,88664.0,88647.0,0.02256069]
[1767167314157,0.02440442,88663.0,88647.0,0.02256069]
[1767167314361,0.16755442,88663.0,88647.0,0.02256069]
[1767167314560,0.02440442,88662.0,88647.0,0.02256069]
[1767167315016,0.02440442,88662.0,88647.0,0.01128]
[1767167315348,0.02440442,88662.0,88647.0,0.02256069]
[1767167315549,0.02440442,88662.0,88648.0,0.01128057]
[1767167316222,0.02440442,88662.0,88649.0,0.01128044]
[1767167316570,0.02440442,88662.0,88648.0,0.01128057]
[1767167316813,0.02440442,88662.0,88649.0,0.01128044]
[1767167317271,0.02440442,88662.0,88647.0,0.15876]
[1767167317674,0.0356832,88662.0,88647.0,0.15876]
[1767167317914,0.01127891,88661.0,88647.0,0.15876]
[1767167318190,0.15442891,88661.0,88647.0,0.01128]
[1767167318386,0.01127917,88659.0,88647.0,0.01128]
[1767167318965,0.14315,88658.0,88647.0,0.01128]
[1767167320603,0.14315,88658.0,88648.0,0.01128]
[1767167322505,0.15442929,88658.0,88648.0,0.01128]
[1767167323566,0.15442929,88658.0,88648.0,0.01123764]
[1767167324903,0.14315,88658.0,88648.0,0.01123764]
[1767167330524,0.14315,88658.0,88648.0,0.0111948]
[1767167332760,0.14315,88658.0,88641.0,0.01356806]
[1767167332761,0.01127942,88657.0,88641.0,0.01356806]
[1767167332982,0.14021,88656.0,88642.0,0.01128]
[1767167333750,0.14021,88656.0,88642.0,0.02256133]
[1767167334332,0.14021,88656.0,88642.0,0.01128]
[1767167334534,0.14021,88656.0,88640.0,0.0001135]
[1767167334535,0.14021,88649.0,88640.0,0.0001135]
[1767167334737,0.000549,88642.0,88640.0,0.0001135]
[1767167335088,0.14021,88642.0,88640.0,0.0001135]
[1767167335910,0.14021,88642.0,88640.0,5e-07]
[1767167337207,0.14021,88642.0,88637.0,0.01123696]
[1767167337554,0.14021,88647.0,88637.0,0.01123696]
[1767167337756,0.01127993,88653.0,88638.0,0.1478]
[1767167337955,0.01127967,88655.0,88638.0,0.1478]
[1767167338181,0.01139292,88657.0,88642.0,0.16136806]
[1767167338397,0.01127955,88656.0,88642.0,0.16136806]
[1767167339088,0.01127967,88655.0,88642.0,0.16136806]
[1767167339261,0.01127955,88656.0,88642.0,0.16136806]
[1767167339881,0.01127967,88655.0,88642.0,0.16136806]
[1767167340406,0.01127955,88656.0,88642.0,0.16136806]
[1767167341112,0.01127967,88655.0,88642.0,0.16136806]
[1767167341522,0.01127955,88656.0,88642.0,0.16136806]
[1767167341523,0.06767774,88656.0,88642.0,0.16136806]
[1767167341848,0.01127967,88655.0,88642.0,0.16136806]
[1767167343200,0.01127955,88656.0,88642.0,0.16136806]
[1767167343609,0.0112798,88654.0,88642.0,0.16136806]
[1767167343810,0.0676778,88656.0,88642.0,0.16136806]
[1767167343811,0.01127955,88656.0,88642.0,0.16136806]
[1767167344294,0.0112798,88654.0,88642.0,0.16136806]
[1767167344425,0.01127955,88656.0,88642.0,0.16136806]
[1767167344828,0.01127967,88655.0,88642.0,0.16136806]
[1767167346297,0.0112798,88654.0,88642.0,0.16136806]
[1767167346436,0.01127967,88655.0,88642.0,0.16136806]
[1767167346981,0.0112798,88654.0,88642.0,0.16136806]
[1767167347335,0.01127993,88653.0,88642.0,0.16136806]
[1767167347540,0.01127967,88655.0,88642.0,0.16136806]
[1767167350693,0.0112798,88654.0,88642.0,0.16136806]
[1767167350854,0.01127993,88653.0,88642.0,0.16136806]
[1767167351560,0.0112798,88654.0,88642.0,0.16136806]
[1767167351770,0.01128006,88652.0,88637.0,0.15713696]
[1767167351970,0.01128018,88651.0,88637.0,0.15713696]
[1767167352113,0.01128006,88652.0,88637.0,0.15713696]
[1767167352517,0.01128031,88650.0,88637.0,0.15713696]
[1767167352732,0.01128057,88648.0,88637.0,0.15713696]
[1767167353196,0.01128069,88647.0,88637.0,0.15713696]
[1767167354336,0.01128057,88648.0,88637.0,0.15713696]
[1767167354896,0.06768265,88649.0,88637.0,0.15713696]
[1767167358251,0.01128057,88648.0,88637.0,0.15713696]
[1767167358456,0.01128018,88651.0,88637.0,0.15713696]
[1767167358669,0.01128031,88650.0,88637.0,0.15713696]
[1767167358993,0.01128018,88651.0,88637.0,0.15713696]
[1767167359509,0.01128031,88650.0,88637.0,0.15713696]
[1767167360143,0.01128057,88648.0,88637.0,0.15713696]
[1767167360360,0.01128031,88650.0,88637.0,0.15713696]
[1767167360560,0.01128044,88649.0,88637.0,0.15713696]
[1767167361537,0.01128031,88650.0,88637.0,0.15713696]
[1767167361737,0.01128018,88651.0,88637.0,0.15713696]
[1767167362096,0.01128031,88650.0,88637.0,0.15713696]
[1767167363144,0.01128044,88649.0,88637.0,0.15713696]
[1767167364559,0.16043044,88649.0,88637.0,0.01123696]
[1767167366517,0.14915,88649.0,88637.0,0.01123696]
[1767167367543,0.01128018,88651.0,88637.0,0.01123696]
[1767167367743,0.01128006,88652.0,88637.0,0.01123696]
[1767167368123,0.01127993,88653.0,88637.0,0.01123696]
[1767167369573,0.01128006,88652.0,88637.0,0.01123696]
[1767167369751,0.01127993,88653.0,88637.0,0.01123696]
[1767167370337,0.01128006,88652.0,88637.0,0.01123696]
[1767167370537,0.27302774,88650.0,88637.0,0.01123696]
[1767167370781,0.01128044,88649.0,88637.0,0.01123696]
[1767167370981,0.27302774,88650.0,88637.0,0.01123696]
[1767167372255,0.01128044,88649.0,88637.0,0.01123696]
[1767167372844,0.01128069,88647.0,88637.0,0.01123696]
[1767167373674,0.01128057,88648.0,88637.0,0.01123696]
[1767167374768,0.16043044,88649.0,88637.0,0.01123696]
[1767167374976,0.01128057,88648.0,88637.0,0.01123696]
[1767167376181,0.01128069,88647.0,88637.0,0.01123696]
[1767167376682,0.14915,88646.0,88637.0,0.01123696]
[1767167376863,0.14915,88645.0,88637.0,0.01068796]
[1767167378033,0.16043095,88645.0,88633.0,0.0001135]
[1767167378189,0.14915,88642.0,88633.0,0.0001135]
[1767167387986,0.15844158,88640.0,88633.0,0.0001135]
[1767167388213,0.15844158,88640.0,88626.0,0.0001135]
[1767167388214,0.15844209,88636.0,88626.0,0.0001135]
[1767167388417,0.14716,88634.0,88626.0,0.0001135]
[1767167388648,0.14716,88633.0,88626.0,0.0001135]
[1767167389034,0.15844247,88633.0,88626.0,0.0001135]
[1767167389229,0.14716,88633.0,88626.0,0.0001135]
[1767167389432,0.14716,88630.0,88626.0,0.0001135]
[1767167390228,0.15844222,88635.0,88626.0,0.0001135]
[1767167390413,0.01128235,88634.0,88626.0,0.0001135]
[1767167391601,0.01128247,88633.0,88626.0,0.0001135]
[1767167391801,0.01128235,88634.0,88626.0,0.0001135]
[1767167394641,0.01128247,88633.0,88626.0,0.0001135]
[1767167394842,0.0112826,88632.0,88626.0,0.0001135]
[1767167395405,0.15844247,88633.0,88626.0,0.0001135]
[1767167396772,0.1584426,88632.0,88626.0,0.0001135]
[1767167397815,0.05641367,88631.0,88626.0,0.0001135]
[1767167398015,0.01128273,88631.0,88626.0,0.0001135]
[1767167398313,0.1584426,88632.0,88626.0,0.0001135]
[1767167399641,0.14716,88630.0,88626.0,0.0001135]
[1767167402511,0.0564198,88622.0,88620.0,3.51e-06]
[1767167402728,0.0564198,88622.0,88613.0,3.5e-06]
[1767167402729,0.13837,88615.0,88613.0,3.5e-06]
[1767167410497,0.01128464,88616.0,88613.0,3.5e-06]
[1767167410708,0.01128451,88617.0,88613.0,3.5e-06]
[1767167410709,0.14965451,88617.0,88613.0,3.5e-06]
[1767167410938,0.13837,88617.0,88613.0,3.5e-06]
[1767167411404,0.07902367,88622.0,88617.0,0.000549]
[1767167411405,0.13837,88621.0,88617.0,0.000549]
[1767167411651,0.13837,88621.0,88613.0,3.5e-06]
[1767167412255,0.01132,88620.0,88613.0,3.5e-06]
[1767167431006,0.00679402,88620.0,88613.0,3.5e-06]
[1767167431210,0.00134511,88620.0,88613.0,3.5e-06]
[1767167432011,0.01262924,88620.0,88613.0,3.5e-06]
[1767167432333,0.00134511,88620.0,88613.0,3.5e-06]
[1767167432753,0.15553313,88621.0,88613.0,3.5e-06]
[1767167433815,0.14739413,88620.0,88613.0,3.5e-06]
[1767167434040,0.14286828,88619.0,88613.0,3.5e-06]
[1767167434282,0.14739451,88617.0,88613.0,3.5e-06]
[1767167434494,0.13611,88617.0,88613.0,3.5e-06]
[1767167437821,0.13606838,88617.0,88613.0,3.5e-06]
[1767167439450,0.14735289,88617.0,88613.0,3.5e-06]
[1767167439629,0.01128464,88616.0,88613.0,3.5e-06]
[1767167439837,0.13611,88616.0,88613.0,3.5e-06]
[1767167441225,0.01128451,88617.0,88613.0,3.5e-06]
[1767167441614,0.01128438,88618.0,88613.0,3.5e-06]
[1767167441837,0.06770615,88619.0,88613.0,3.5e-06]
[1767167442182,0.01128426,88619.0,88613.0,3.5e-06]
[1767167442396,0.01128438,88618.0,88613.0,3.5e-06]
[1767167444034,0.01128451,88617.0,88613.0,3.5e-06]
[1767167444378,0.01128438,88618.0,88613.0,3.5e-06]
[1767167445075,0.01128451,88617.0,88613.0,3.5e-06]
[1767167445453,0.01128438,88618.0,88613.0,3.5e-06]
[1767167445666,0.01128451,88617.0,88613.0,3.5e-06]
[1767167446476,0.06770609,88619.0,88613.0,3.5e-06]
[1767167447541,0.01128438,88618.0,88613.0,3.5e-06]
[1767167448584,0.01128451,88617.0,88613.0,3.5e-06]
[1767167448817,0.01128438,88618.0,88613.0,3.5e-06]
[1767167449433,0.01128426,88619.0,88613.0,3.5e-06]
[1767167450232,0.01128413,88620.0,88613.0,3.5e-06]
[1767167451831,0.01128426,88619.0,88613.0,3.5e-06]
[1767167452307,0.01128438,88618.0,88613.0,3.5e-06]
[1767167452508,0.01128426,88619.0,88613.0,3.5e-06]
[1767167453871,0.01128438,88618.0,88613.0,3.5e-06]
[1767167454067,0.01128413,88620.0,88613.0,3.5e-06]
[1767167454619,0.01128426,88619.0,88613.0,3.5e-06]
[1767167454985,0.01128413,88620.0,88613.0,3.5e-06]
[1767167458875,0.01128426,88619.0,88613.0,3.5e-06]
[1767167459032,0.01128413,88620.0,88613.0,3.5e-06]
[1767167461526,0.01128426,88619.0,88613.0,3.5e-06]
[1767167463020,0.01128413,88620.0,88613.0,3.5e-06]
[1767167463248,0.01128426,88619.0,88613.0,3.5e-06]
[1767167464722,0.01128413,88620.0,88613.0,3.5e-06]
[1767167465332,0.01128426,88619.0,88613.0,3.5e-06]
[1767167465527,0.01128413,88620.0,88613.0,3.5e-06]
[1767167465913,0.022604,88621.0,88613.0,3.5e-06]
[1767167466727,0.01132,88621.0,88613.0,3.5e-06]
[1767167466935,0.01077,88621.0,88613.0,3.5e-06]
[1767167471955,0.01132,88620.0,88614.0,0.14149]
[1767167472178,0.01132,88621.0,88614.0,0.14149]
[1767167472315,0.01132,88622.0,88614.0,0.14149]
[1767167487389,0.01132,88622.0,88613.0,3.5e-06]
[1767167489568,0.02101635,88625.0,88614.0,0.01128489]
[1767167489710,0.0001135,88637.0,88628.0,0.13693]
[1767167489914,0.01132,88641.0,88631.0,0.14821273]
[1767167490138,0.0001135,88643.0,88635.0,0.13693]
[1767167490139,3.5e-06,88637.0,88635.0,0.13693]
[1767167492129,4.742e-05,88637.0,88635.0,0.13693]
[1767167494178,4.742e-05,88637.0,88633.0,0.13693]
[1767167494509,0.0001135,88643.0,88632.0,0.01132]
[1767167494510,0.0001135,88643.0,88635.0,0.01128222]
[1767167494670,3.5e-06,88643.0,88637.0,0.13693]
[1767167494882,7e-06,88650.0,88638.0,0.13693]
[1767167495115,5.093e-05,88650.0,88641.0,0.13693]
[1767167495567,5.093e-05,88650.0,88641.0,0.136381]
[1767167495778,0.01128044,88649.0,88641.0,0.136381]
[1767167495989,0.01128069,88647.0,88641.0,0.136381]
[1767167496217,0.01128095,88645.0,88641.0,0.136381]
[1767167496443,0.01128044,88649.0,88614.0,0.28650696]
[1767167496444,0.01128158,88640.0,88627.0,0.13693]
[1767167496668,0.27307102,88640.0,88632.0,0.01132]
[1767167496870,0.27307077,88642.0,88632.0,0.01077]
[1767167497072,0.27307077,88642.0,88632.0,0.0108765]
[1767167497708,0.26178944,88642.0,88632.0,0.0108765]
[1767167498122,0.27307077,88642.0,88632.0,0.0108765]
[1767167498561,0.0112812,88643.0,88632.0,0.0108765]
[1767167499434,0.01128133,88642.0,88632.0,0.0108765]
[1767167500079,0.14748,88642.0,88632.0,0.0108765]
[1767167501022,0.15876133,88642.0,88632.0,0.0108765]
[1767167503333,0.15876146,88641.0,88632.0,0.0108765]
[1767167505050,0.01128158,88640.0,88632.0,0.0108765]
[1767167506394,0.01128171,88639.0,88632.0,0.0108765]
[1767167506609,0.14544,88639.0,88632.0,0.0108765]
[1767167506802,0.14544,88645.0,88639.0,0.000549]
[1767167507130,0.14544,88645.0,88633.0,0.0001065]
[1767167509847,4.393e-05,88650.0,88645.0,0.000549]
[1767167510049,0.01132,88649.0,88645.0,0.000549]
[1767167510257,0.01132,88649.0,88636.0,0.14665]
[1767167511774,4.393e-05,88650.0,88639.0,0.26178944]
[1767167512002,4.393e-05,88650.0,88639.0,0.40843944]
[1767167512464,9.3e-07,88650.0,88640.0,0.14665]
[1767167513242,9.3e-07,88650.0,88640.0,0.27310944]
[1767167513502,9.3e-07,88650.0,88641.0,0.14665]
[1767167515409,9.3e-07,88650.0,88640.0,0.01132]
[1767167521493,9.3e-07,88650.0,88641.0,0.15099146]
[1767167521631,9.3e-07,88650.0,88642.0,0.13971]
[1767167522879,9.3e-07,88650.0,88640.0,0.27310944]
[1767167524648,0.27307068,88650.0,88640.0,0.01132]
[1767167525763,0.01128044,88649.0,88640.0,0.01132]
[1767167525963,0.15478057,88648.0,88640.0,0.011277]
[1767167526628,0.1435,88648.0,88640.0,0.011277]
[1767167528174,0.15478057,88648.0,88640.0,0.011277]
[1767167528368,0.1435,88648.0,88640.0,0.011277]
[1767167531835,0.15478057,88648.0,88640.0,0.011277]
[1767167532015,0.01128095,88645.0,88640.0,0.011277]
[1767167532405,0.01128082,88646.0,88640.0,0.011277]
[1767167532985,0.01128095,88645.0,88640.0,0.011277]
[1767167534896,0.01128107,88644.0,88640.0,0.011277]
[1767167535415,0.0112812,88643.0,88640.0,0.011277]
[1767167536097,0.01128107,88644.0,88640.0,0.011277]
[1767167536646,0.01128107,88644.0,88641.0,0.14762]
[1767167538802,0.01128095,88645.0,88641.0,0.14762]
[1767167541425,0.01128107,88644.0,88641.0,0.14762]
[1767167541572,0.01128095,88645.0,88641.0,0.14762]
[1767167541768,0.01128095,88645.0,88640.0,0.011277]
[1767167541769,0.06768661,88644.0,88640.0,0.011277]
[1767167541973,0.15273107,88644.0,88640.0,0.011277]
[1767167542175,0.14145,88644.0,88640.0,0.011277]
[1767167542406,0.0112812,88643.0,88640.0,0.011277]
[1767167542611,0.01128107,88644.0,88640.0,0.011277]
[1767167544410,0.0112812,88643.0,88640.0,0.011277]
[1767167544774,0.01128107,88644.0,88640.0,0.011277]
[1767167545198,0.01128095,88645.0,88640.0,0.011277]
[1767167545583,0.01128107,88644.0,88640.0,0.011277]
[1767167546215,0.01128107,88644.0,88640.0,0.01123422]
[1767167547282,0.01128158,88640.0,88633.0,6.4e-05]
[1767167547493,0.01128133,88642.0,88633.0,6.4e-05]
[1767167549616,0.14145,88635.0,88626.0,7.37e-05]
[1767167549842,0.140901,88635.0,88626.0,7.37e-05]
[1767167550042,0.15273146,88641.0,88626.0,7.37e-05]
[1767167550189,0.15273146,88641.0,88626.0,0.1476937]
[1767167550394,0.14145,88641.0,88630.0,0.26178944]
[1767167550595,0.15273146,88641.0,88630.0,0.26178944]
[1767167552406,0.15273146,88641.0,88626.0,0.1476937]
[1767167552604,0.01128158,88640.0,88630.0,0.26178944]
[1767167552889,0.15273146,88641.0,88630.0,0.26178944]
[1767167553824,0.01128158,88640.0,88626.0,0.1476937]
[1767167554024,0.01128158,88640.0,88630.0,0.26178944]
[1767167554672,0.01128158,88640.0,88626.0,0.1476937]
[1767167555524,0.15273146,88641.0,88626.0,0.1476937]
[1767167555698,0.01128158,88640.0,88626.0,0.1476937]
[1767167555920,0.01128171,88639.0,88626.0,0.1476937]
[1767167558881,0.01128184,88638.0,88626.0,0.1476937]
[1767167559061,0.01128171,88639.0,88626.0,0.1476937]
[1767167560795,0.01128184,88638.0,88626.0,0.1476937]
[1767167561409,0.01128171,88639.0,88626.0,0.1476937]
[1767167561583,0.27308485,88640.0,88626.0,0.1476937]
[1767167561786,0.01128171,88639.0,88626.0,0.1476937]
[1767167562763,0.01128184,88638.0,88626.0,0.1476937]
[1767167563534,0.06769044,88639.0,88626.0,0.1476937]
[1767167563888,0.01128171,88639.0,88626.0,0.1476937]
[1767167564036,0.27308485,88640.0,88626.0,0.1476937]
[1767167567025,0.14145,88641.0,88626.0,0.15897707]
[1767167567226,0.14145,88641.0,88626.0,0.1476937]
[1767167567429,0.01128107,88644.0,88626.0,0.1476937]
[1767167567625,0.0112812,88643.0,88626.0,0.15897707]
[1767167567928,0.01128107,88644.0,88627.0,0.13884]
[1767167568431,0.01128107,88644.0,88627.0,0.15012324]
[1767167568939,0.01128107,88644.0,88627.0,0.13884]
[1767167569639,0.01128107,88644.0,88627.0,0.15012324]
[1767167570477,0.01128095,88645.0,88627.0,0.15012324]
[1767167570621,0.01128107,88644.0,88627.0,0.13884]
[1767167570822,0.01128107,88644.0,88627.0,0.15012324]
[1767167571977,0.0112812,88643.0,88627.0,0.13884]
[1767167572130,0.01128107,88644.0,88627.0,0.15012324]
[1767167572882,0.01128095,88645.0,88627.0,0.15012324]
[1767167573209,0.19281345,88648.0,88629.0,0.15012298]
[1767167573210,0.01128069,88647.0,88629.0,0.15012298]
[1767167573929,0.01128082,88646.0,88629.0,0.15012298]
[1767167574187,0.01128082,88646.0,88629.0,0.13884]
[1767167574343,0.01128082,88646.0,88629.0,0.15012298]
[1767167574534,0.01128082,88646.0,88629.0,0.13884]
[1767167574770,0.01128095,88645.0,88629.0,0.13884]
[1767167575789,0.14769082,88646.0,88629.0,0.13884]
[1767167575969,0.01128095,88645.0,88629.0,0.13884]
[1767167576397,0.01128107,88644.0,88629.0,0.13884]
[1767167577141,0.01128095,88645.0,88629.0,0.13884]
[1767167578332,0.01128107,88644.0,88629.0,0.13884]
[1767167579026,0.01128095,88645.0,88629.0,0.13884]
[1767167580256,0.01128107,88644.0,88629.0,0.13884]
[1767167580576,0.01128095,88645.0,88629.0,0.13884]
[1767167581439,0.14769082,88646.0,88629.0,0.13884]
[1767167582621,0.15483107,88644.0,88629.0,0.13884]
[1767167582818,0.1548312,88643.0,88629.0,0.13884]
[1767167583026,0.01128133,88642.0,88626.0,7.37e-05]
[1767167583572,0.14355,88643.0,88626.0,0.01135707]
[1767167583786,0.14355,88643.0,88627.0,0.01128324]
[1767167583947,0.14355,88643.0,88626.0,0.15356707]
[1767167584182,0.1548312,88643.0,88626.0,0.1422837]
[1767167584390,0.1548312,88643.0,88626.0,0.15356707]
[1767167584945,0.14355,88643.0,88626.0,0.15356707]
[1767167588848,0.14355,88643.0,88626.0,0.1422837]
[1767167589049,0.14355,88643.0,88627.0,0.01128324]
[1767167589401,0.14355,88643.0,88627.0,0.15349324]
[1767167591732,0.14355,88643.0,88627.0,0.14221]
[1767167591910,0.14355,88643.0,88627.0,0.15349324]
[1767167594724,0.14355,88643.0,88627.0,0.14221]
[1767167595134,0.1548312,88643.0,88627.0,0.14221]
[1767167595368,0.14355,88641.0,88626.0,7.37e-05]
[1767167595499,0.15483146,88641.0,88626.0,7.37e-05]
[1767167596042,0.14355,88639.0,88626.0,7.37e-05]
[1767167596262,0.15483171,88639.0,88626.0,7.37e-05]
[1767167596464,0.13518,88638.0,88626.0,7.37e-05]
[1767167596855,0.14646184,88638.0,88626.0,7.37e-05]
[1767167597059,0.13518,88638.0,88626.0,7.37e-05]
[1767167610814,0.13518,88645.0,88629.0,0.01128298]
[1767167611036,0.13518,88645.0,88638.0,0.00055]
[1767167611375,0.13518,88645.0,88630.0,0.01128286]
[1767167611376,0.13518,88645.0,88629.0,0.1469]
[1767167611588,0.13518,88645.0,88629.0,0.15818298]
[1767167612003,0.13518,88645.0,88629.0,0.1469]
[1767167612339,0.13518,88645.0,88629.0,0.15818298]
[1767167614579,0.13518,88645.0,88630.0,0.01128286]
[1767167614799,0.13518,88645.0,88629.0,0.15818298]
[1767167615118,0.13518,88645.0,88629.0,0.1469]
[1767167615370,0.13518,88645.0,88630.0,0.01128286]
[1767167615592,0.13518,88645.0,88629.0,0.15818298]
[1767167615793,0.13518,88645.0,88630.0,0.01128286]
[1767167616657,0.13518,88645.0,88630.0,0.27307668]
[1767167618736,0.13518,88645.0,88630.0,0.26179382]
[1767167618887,0.14646095,88645.0,88630.0,0.26179382]
[1767167619905,0.14646095,88645.0,88629.0,0.1469]
[1767167621516,0.14646095,88645.0,88630.0,0.26179382]
[1767167621959,0.14646095,88645.0,88629.0,0.1469]
[1767167622276,0.13518,88645.0,88629.0,0.1469]
[1767167622829,0.13518,88645.0,88629.0,0.15818298]
[1767167623477,0.13518,88645.0,88630.0,0.01128286]
[1767167624181,0.01143454,88650.0,88631.0,0.1469]
[1767167624342,0.28634582,88650.0,88634.0,0.1469]
[1767167624549,0.01128069,88647.0,88634.0,0.1469]
[1767167624795,0.14646069,88647.0,88630.0,0.27307668]
[1767167624992,0.14646069,88647.0,88630.0,0.26179382]
[1767167625174,0.13518,88647.0,88630.0,0.27307668]
[1767167625374,0.13518,88647.0,88631.0,0.01128273]
[1767167625612,0.13518,88647.0,88632.0,0.0112826]
[1767167625977,0.13518,88647.0,88631.0,0.01128273]
[1767167626800,0.27322836,88650.0,88634.0,0.1401]
[1767167627206,0.14928,88649.0,88634.0,0.15138235]
[1767167628324,0.14928,88649.0,88635.0,0.01128222]
[1767167629007,0.26194805,88650.0,88635.0,0.15138222]
[1767167631137,0.26194805,88650.0,88635.0,0.1401]
[1767167631292,0.26194805,88650.0,88635.0,0.15138222]
[1767167631636,0.26194805,88650.0,88636.0,0.01128209]
[1767167632196,0.00015423,88650.0,88637.0,0.01128197]
[1767167632535,0.00015423,88650.0,88637.0,0.15366806]
[1767167632696,0.00015423,88650.0,88640.0,0.26179382]
[1767167632880,0.00015423,88650.0,88637.0,0.15366806]
[1767167633244,0.00015423,88650.0,88640.0,0.26179382]
[1767167634246,0.00015423,88650.0,88640.0,0.4131754]
[1767167635353,0.00015423,88650.0,88640.0,0.40189382]
[1767167635663,0.00015423,88650.0,88647.0,0.1401]
[1767167635664,2.3e-07,88650.0,88647.0,0.1401]
[1767167636944,2.3e-07,88650.0,88646.0,0.01128082]
[1767167637281,2.3e-07,88650.0,88646.0,0.15138082]
[1767167637481,2.3e-07,88650.0,88646.0,0.1401]
[1767167637640,2.3e-07,88650.0,88646.0,0.15138082]
[1767167637852,2.3e-07,88650.0,88646.0,0.1401]
[1767167638470,2.3e-07,88650.0,88646.0,0.15138082]
[1767167638984,2.3e-07,88650.0,88647.0,0.01128069]
[1767167639214,2.3e-07,88650.0,88648.0,0.1401]
[1767167639770,2.3e-07,88650.0,88648.0,0.19650233]
[1767167639997,2.3e-07,88650.0,88649.0,0.1401]
[1767167640339,2.3e-07,88650.0,88647.0,0.2077838]